[Event "Prague Open 2024"]
[Site "Prague"]
[Date "2024.01.09"]
[Round "6.19"]
[White "Shao, Wenbin"]
[Black "Elashvili, Giorgi"]
[Result "1/2-1/2"]
[ECO "B35"]
[WhiteElo "2112"]
[BlackElo "1942"]
[Annotator "TA"]
[PlyCount "119"]
[EventDate "2024.01.02"]
[EventType "swiss"]
[EventCountry "CZE"]
[SourceTitle "playchess.com"]
[Source "ChessBase"]
[SourceQuality "1"]
[TimeControl "40/5400+30:1800+30"]

{[%evp 14,119,20,22,39,2,38,34,94,18,21,14,3,-22,-29,-23,-27,-27,4,3,16,4,29,24,47,28,19,0,0,0,95,85,120,92,129,119,133,142,136,129,167,139,158,150,158,119,120,131,128,114,150,120,139,120,125,61,103,0,125,38,127,97,101,106,108,29,81,104,136,133,139,124,138,150,154,141,147,142,183,156,151,116,177,175,156,155,142,132,180,169,282,268,332,161,205,0,266,281,257,226,212,0,225,0,597,584,597,-902]} 1. e4 {[%emt 0:01:12]} c5 {[%emt 0:01:00]} 2. Nf3 {[%emt 0:00:18]} Nc6 {[%emt 0:00:43]} 3. d4 {[%emt 0:00:19]} cxd4 {[%emt 0:00:09]} 4. Nxd4 {[%emt 0:00:08]} g6 {[%emt 0:00:36]} 5. Nc3 {[%emt 0:02:14]} Bg7 {[%emt 0:01:02]} 6. Be3 {[%emt 0:00:10]} Nf6 {[%emt 0:00:35]} 7. Bc4 {[%emt 0:00:51]} O-O {[%emt 0:00:10]} 8. Bb3 {[%emt 0:00:06]} Re8 {[%emt 0:01:16] B35: Sicilian: Accelerated Dragon with 5 Nc3: main line.} 9. h4 {[%emt 0:03:27][%cal Oh4h5]} d5 {[%emt 0:22:23]} 10. exd5 {[%emt 0:01:41]} Nb4 {[%emt 0:00:23]} (10... Na5 $14) 11. Nde2 {[%emt 0:01:20] [#]} (11. h5 $16) 11... e6 $146 {[%emt 0:03:24][%cal Rb4d5]} ({Predecessor:} 11... Ng4 12. Bc5 Na6 13. Bd4 e5 14. dxe6 Bxe6 15. Bxg7 Kxg7 16. h5 Bxb3 17. axb3 Nb4 18. Qxd8 Raxd8 {0-1 Mihok,O (2547)-Suarez Uriel,A (2352) Titled Tuesday intern op 04th Jan blitz 2022 (5)}) 12. d6 {[%emt 0:09:07]} Nbd5 {[%emt 0:00:54]} 13. Bg5 {[%emt 0:11:44]} Qxd6 {[%emt 0:04:59]} 14. Qd2 {[%emt 0:01:08]} Qe5 {[%emt 0:11:32][%cal Ob7b5]} 15. f3 {[%emt 0:20:12]} b6 {[%emt 0:24:10][%cal Oh7h6]} (15... b5 $5) 16. O-O-O {[%emt 0:01:46]} Ba6 {[%emt 0:01:39][%cal Oh7h6]} 17. Rhe1 {[%emt 0:01:51] aiming for Nf4.} Nxc3 {[%emt 0:05:36]} 18. Nxc3 {[%emt 0:00:31]} Qf5 {[%emt 0:02:12]} 19. Qd6 {[%emt 0:04:50] Re5 would be deadly.} h6 {[%emt 0:06:42]} 20. Be3 {[%emt 0:07:55]} (20. Bf4 {seems wilder.} Bf8 21. Qc7 Rac8 22. g4) 20... Rac8 {[%emt 0:05:48]} 21. Qd2 {[%emt 0:04:36]} Bc4 {[%emt 0:03:08]} (21... Kh7 $11 {keeps the balance.}) 22. Bxh6 $16 {[%emt 0:05:57]} Bh8 {[%emt 0:02:13]} 23. Qg5 {[%emt 0:06:04]} Qxg5+ {[%emt 0:00:30]} 24. Bxg5 {[%emt 0:00:11]} (24. hxg5 Nd5) 24... Bxb3 {[%emt 0:00:49]} 25. axb3 {[%emt 0:00:02]} Nh7 {[%emt 0:00:23]} 26. Ne4 {[%emt 0:00:08] And now Nd6 would win.} Rc6 {[%emt 0:00:32]} 27. Be3 {[%emt 0:05:57]} Rec8 {[%emt 0:00:06] Black is weak on the dark squares} 28. c3 {[%emt 0:00:21]} Nf6 {[%emt 0:00:36]} 29. Bd4 {[%emt 0:01:36] White is more active.} Nd5 {[%emt 0:00:50]} 30. Bxh8 {[%emt 0:01:12]} Kxh8 {[%emt 0:00:02]} 31. Kb1 {[%emt 0:00:09]} b5 {[%emt 0:00:38]} 32. g3 {[%emt 0:00:48]} Kg7 {[%emt 0:00:17]} 33. Rd4 {[%emt 0:01:05]} a5 {[%emt 0:00:51]} 34. Ng5 {[%emt 0:00:40]} (34. Kc2 $16) 34... R8c7 {[%emt 0:00:37][%cal Oa5a4]} 35. Ne4 {[%emt 0:04:37]} Rc8 $1 {[%emt 0:00:38]} 36. Nf2 {[%emt 0:00:02]} (36. Kc2 $16) 36... Nf6 {[%emt 0:00:32]} (36... a4 $1 $14) 37. Nd3 {[%emt 0:00:53]} Nd5 {[%emt 0:00:25]} 38. Ne5 {[%emt 0:02:24]} R6c7 {[%emt 0:00:06]} 39. Ng4 {[%emt 0:00:25]} (39. Kc2 $16) 39... Ne7 {[%emt 0:01:02]} (39... Nxc3+ $1 $11 {remains equal.} 40. bxc3 Rxc3) 40. Ne3 {[%emt 0:00:35]} Nf5 {[%emt 0:00:30]} 41. Nxf5+ {[%emt 0:30:13]} gxf5 {[%emt 0:30:19][%mdl 4096] Endgame KRR-KRR} 42. g4 {[%emt 0:01:47]} Kf6 {[%emt 0:00:39]} 43. Kc2 {[%emt 0:00:00]} Rc5 {[%emt 0:00:00]} 44. Ra1 {[%emt 0:00:00]} b4 {[%emt 0:00:00][%cal Rb4c3]} 45. c4 {[%emt 0:00:00]} Rg8 {[%emt 0:00:00]} 46. Rad1 {[%emt 0:00:00]} Rh8 {[%emt 0:00:00]} 47. Rh1 {[%emt 0:00:00]} Kg6 {[%emt 0:00:00]} (47... Ke7 $16 {was necessary.} 48. h5 e5) 48. Kd2 $18 {[%emt 0:00:00]} fxg4 {[%emt 0:00:00]} 49. fxg4 {[%emt 0:00:00]} Re5 {[%emt 0:00:00]} 50. Rh2 {[%emt 0:00:00]} Rh7 {[%emt 0:00:12]} (50... f6 $16 51. Rd6 Rh7) 51. Kd3 {[%emt 0:00:00]} f6 {[%emt 0:00:10]} (51... Rh8 $142 52. Rd7 f6 53. h5+ Kg5 54. Rg7+ Kf4) 52. Rd8 {[%emt 0:00:00]} Rg7 {[%emt 0:02:12]} 53. Rf2 {[%emt 0:00:00]} (53. Re2 $142 $1 {[%cal Re2e5]}) 53... Rh7 {[%emt 0:01:12]} 54. Rh2 {[%emt 0:00:00]} (54. h5+ $18 Kg5 55. Rg8+ {[%mdl 64] Deflection} Kh4 56. Rd2 (56. Rxf6 Rd7+ 57. Kc2 Re2+ 58. Kc1 Re1+ 59. Kc2 Re2+ 60. Kc1 Re1+ 61. Kc2 Re2+ $11)) 54... Re1 $2 {[%emt 0:00:20][%mdl 8192]} (54... Rg7 $1 $11 {and Black stays safe.}) 55. Rg8+ Kf7 56. Ra8 {Ra7+ is the strong threat.} Kg6 57. Rg8+ Kf7 {[#]} 58. Ra8 (58. Rc8 $1 $18 {[%cal Rc8c7]}) 58... Rg1 $2 {[%mdl 8192]} (58... Kg6 $1 $11) 59. Ra7+ (59. Rxa5 Rg3+ 60. Kc2 Rxg4 61. Ra7+ Kg8 62. Rxh7 Kxh7 $18) 59... Kg6 {[#]} 60. Ke4 $4 {[%mdl 40960] What a fight!   Weighted Error Value: White=0.36/Black=0.42. An unexpected result.} 1/2-1/2

[Event "Prague Open 2024"]
[Site "Prague"]
[Date "2024.01.09"]
[Round "6.20"]
[White "Trapl, Dalibor"]
[Black "Lilliehook, Victor"]
[Result "1-0"]
[ECO "B33"]
[WhiteElo "2108"]
[BlackElo "1934"]
[Annotator "TA"]
[PlyCount "55"]
[EventDate "2024.01.02"]
[EventType "swiss"]
[EventCountry "CZE"]
[SourceTitle "playchess.com"]
[Source "ChessBase"]
[SourceQuality "1"]
[TimeControl "40/5400+30:1800+30"]

{[%evp 23,55,2,7,7,8,16,24,15,40,42,337,334,406,309,304,283,520,442,722,710,938,931,825,826,1441,1336,2400,800,767,550,29982,29983,29977,29977]} 1. e4 {[%emt 0:00:04]} c5 {[%emt 0:00:14]} 2. Nf3 {[%emt 0:00:12]} Nc6 {[%emt 0:00:04]} 3. d4 {[%emt 0:00:27]} cxd4 {[%emt 0:00:07]} 4. Nxd4 {[%emt 0:00:08]} Nf6 {[%emt 0:00:04]} 5. Nc3 {[%emt 0:00:08]} e5 {[%emt 0:00:10]} 6. Ndb5 {[%emt 0:00:32]} d6 {[%emt 0:00:03]} 7. Bg5 {[%emt 0:00:30]} a6 {[%emt 0:00:05]} 8. Na3 {[%emt 0:00:07]} b5 {[%emt 0:00:03][%cal Bb7b5,Bb5b4][%mdl 32]} 9. Nd5 {[%emt 0:01:16]} Be7 {[%emt 0:00:21]} 10. Bxf6 {[%emt 0:00:09]} Bxf6 {[%emt 0:00:02]} 11. c4 {[%emt 0:00:26][%cal Bc2c4,Bc4c5][%mdl 32]} b4 {[%emt 0:00:31]} 12. Nc2 {[%emt 0:00:11]} a5 {[%emt 0:00:02]} 13. Qf3 {[%emt 0:01:07] B33: Sicilian: Pelikan and Sveshnikov Variations.} Bg5 {[%emt 0:04:30] [#] 13...Be6 might become the main line.} 14. h4 $1 {[%emt 0:03:10]} Be7 {[%emt 0:06:59]} 15. Rd1 {[%emt 0:04:00][%cal Oc4c5] White has an edge.} Be6 {[%emt 0:07:43]} 16. c5 {[%emt 0:05:53] [#] Bb5 is the strong threat.} Bf8 $146 {[%emt 0:19:58][%mdl 8192]} ({Black should try} 16... O-O $14) ({Predecessor:} 16... Bxd5 17. Rxd5 Qc7 18. cxd6 Bxd6 19. Qd1 Rd8 20. Rh3 O-O 21. Rhd3 Be7 22. g3 Rxd5 23. Rxd5 {1-0 Shlyakhtenko,R (2342)-Juarez Flores,G (2108) Titled Tuesday intern op 30th June blitz 2020 (4)}) 17. Bb5 $18 {[%emt 0:07:17]} Bd7 {[%emt 0:04:10]} 18. Nb6 {[%emt 0:09:35] Excellent horsemanship.} Rb8 {[%emt 0:05:10]} 19. Qd3 {[%emt 0:09:51] Nxd7 would be deadly.} (19. Bc4 Be6 20. Qb3 (20. Bxe6 fxe6 21. Nc4 Qf6 $18) 20... Rxb6 $18) 19... Qc7 {[%emt 0:14:33]} (19... Rxb6 20. cxb6 Qxb6) 20. Nxd7 {[%emt 0:04:41]} (20. cxd6 $2 {perishes.} Qxb6 21. Ba4 g6 $17) 20... Kxd7 {[%emt 0:02:40] Black is weak on the light squares} (20... Qxd7 $142 21. cxd6 b3) 21. Ne3 {[%emt 0:05:35][%cal Bc2e3,Be3c4,Bc4d6,Bd6b5][%mdl 32]} Qb7 {[%emt 0:09:05]} 22. Ba4 {[%emt 0:02:46]} b3 {[%emt 0:03:31]} 23. O-O {[%emt 0:03:07]} ({Weaker is} 23. Bxb3 Qb4+ 24. Rd2 Qxc5 $18) 23... bxa2 {[%emt 0:02:43]} 24. Nc4 {[%emt 0:04:56]} Kc7 {[%emt 0:08:27]} 25. Qd5 {[%emt 0:04:32]} (25. cxd6+ $142 Kd8 26. Qd5) 25... Rd8 {[%emt 0:02:48]} 26. Nxd6 {[%emt 0:02:43]} Qa8 {[%emt 0:02:41]} 27. Bxc6 {[%emt 0:01:17]} Qxc6 {[%emt 0:00:02] [#]} 28. Nb5+ $1 {[%emt 0:00:12][%mdl 576] Discovered Attack. Black got outplayed after the opening. A fantastic game!   Weighted Error Value: White=0.62/Black=1.29} 1-0

[Event "Prague Open 2024"]
[Site "Prague"]
[Date "2024.01.10"]
[Round "7.1"]
[White "Mis, Mieszko"]
[Black "Sowinski, Pawel"]
[Result "1-0"]
[ECO "D47"]
[WhiteElo "2301"]
[BlackElo "2357"]
[Annotator "RC"]
[PlyCount "89"]
[EventDate "2024.01.02"]
[EventType "swiss"]
[EventCountry "CZE"]
[SourceTitle "playchess.com"]
[Source "ChessBase"]
[SourceQuality "1"]
[TimeControl "40/5400+30:1800+30"]

1. d4 {[%emt 0:00:57]} d5 {[%emt 0:00:17]} 2. Nf3 {[%emt 0:00:47]} Nf6 {[%emt 0:00:13]} 3. c4 {[%emt 0:00:09]} e6 {[%emt 0:00:02]} 4. Nc3 {[%emt 0:00:30]} c6 {[%emt 0:00:01]} 5. e3 {[%emt 0:00:39]} Nbd7 {[%emt 0:00:16]} 6. Bd3 {[%emt 0:00:17]} dxc4 {[%emt 0:00:19]} 7. Bxc4 {[%emt 0:00:05]} b5 {[%emt 0:00:04]} 8. Bd3 {[%emt 0:00:07]} Bd6 {[%emt 0:00:21]} 9. O-O {[%emt 0:00:14]} O-O {[%emt 0:02:35]} 10. Qc2 {[%emt 0:00:24]} Bb7 {[%emt 0:01:19]} 11. Ng5 {[%emt 0:00:18]} h6 {[%emt 0:19:51]} 12. Nge4 {[%emt 0:00:19]} Be7 {[%emt 0:08:20]} 13. Rd1 {[%emt 0:01:06]} Qb6 {[%emt 0:05:39]} 14. Nxf6+ {[%emt 0:00:09]} Nxf6 {[%emt 0:00:06]} 15. Qe2 {[%emt 0:00:04]} b4 {[%emt 0:09:27]} 16. Na4 {[%emt 0:01:05]} Qa5 {[%emt 0:00:24]} 17. b3 {[%emt 0:01:00]} c5 {[%emt 0:02:13]} 18. Nxc5 {[%emt 0:05:45]} Bxc5 {[%emt 0:00:09]} 19. dxc5 {[%emt 0:00:04]} Qxc5 {[%emt 0:00:32]} 20. e4 {[%emt 0:09:14]} Rfd8 {[%emt 0:17:10]} 21. Be3 {[%emt 0:01:58]} Qa5 {[%emt 0:07:13]} 22. f3 {[%emt 0:02:07]} Rac8 {[%emt 0:04:02]} 23. Rac1 {[%emt 0:16:01]} Nd7 {[%emt 0:04:32]} 24. Bb5 {[%emt 0:14:15]} Nb8 {[%emt 0:09:47]} 25. Rxd8+ {[%emt 0:02:32]} Rxd8 {[%emt 0:00:06]} 26. Ba4 {[%emt 0:07:21]} Ba6 {[%emt 0:05:31]} 27. Qb2 {[%emt 0:08:02]} Rd3 {[%emt 0:00:43]} 28. Qf2 {[%emt 0:07:39]} Qd8 {[%emt 0:01:45]} 29. h3 {[%emt 0:01:34]} Nd7 {[%emt 0:00:35]} 30. Bxa7 {[%emt 0:02:03]} Ne5 {[%emt 0:00:01]} 31. Qg3 {[%emt 0:01:21]} Qd6 {[%emt 0:00:46]} 32. Bf2 {[%emt 0:01:35]} f6 {[%emt 0:00:40]} 33. Re1 {[%emt 0:02:22]} Rd2 {[%emt 0:00:51]} 34. Be3 {[%emt 0:01:06]} Rxa2 {[%emt 0:00:47]} 35. Bxh6 {[%emt 0:02:56]} g5 {[%emt 0:00:24]} 36. h4 {[%emt 0:01:46]} Qd4+ {[%emt 0:00:54]} 37. Kh1 {[%emt 0:00:55]} Qf2 {[%emt 0:00:32]} 38. Qxf2 {[%emt 0:00:55]} Rxf2 {[%emt 0:00:04]} 39. hxg5 {[%emt 0:03:06]} Nf7 {[%emt 0:00:45]} 40. Rc1 {[%emt 0:02:04]} fxg5 {[%emt 0:00:20]} 41. Rc6 {[%emt 0:31:01]} Bf1 {[%emt 0:06:19]} 42. Kg1 {[%emt 0:00:00]} Rxg2+ {[%emt 0:00:02]} 43. Kxf1 {[%emt 0:00:00]} Rh2 {[%emt 0:00:16]} 44. Rc8+ {[%emt 0:00:00]} Kh7 {[%emt 0:00:01]} 45. Bf8 {[%emt 0:00:00]} 1-0

[Event "Prague Open 2024"]
[Site "Prague"]
[Date "2024.01.10"]
[Round "7.2"]
[White "Mohylnyi, Stepan"]
[Black "Tobak, Mikhail"]
[Result "0-1"]
[ECO "B16"]
[WhiteElo "2180"]
[BlackElo "2288"]
[Annotator "RC"]
[PlyCount "118"]
[EventDate "2024.01.02"]
[EventType "swiss"]
[EventCountry "CZE"]
[SourceTitle "playchess.com"]
[Source "ChessBase"]
[SourceQuality "1"]
[TimeControl "40/5400+30:1800+30"]

1. e4 c6 2. d4 d5 3. Nc3 dxe4 4. Nxe4 Nf6 5. Nxf6+ gxf6 6. Nf3 Bg4 7. h3 Bf5 8. Bd3 Rg8 9. g4 Bg6 10. Bxg6 hxg6 11. Qe2 Qa5+ 12. Bd2 Qa6 13. Qxa6 Nxa6 14. h4 O-O-O 15. O-O-O Rh8 16. h5 Bh6 17. g5 Bxg5 18. Nxg5 fxg5 19. hxg6 f6 20. f4 gxf4 21. Bxf4 Rxh1 22. Rxh1 Rg8 23. Rg1 Nb4 24. Kd2 Nd5 25. Be3 e6 26. Bf2 Kd7 27. Bh4 b5 28. Rg3 a5 29. a4 Rh8 30. g7 Rg8 31. axb5 cxb5 32. Ra3 a4 33. b3 Rxg7 34. bxa4 Rg2+ 35. Kc1 b4 36. Rf3 f5 37. Kb2 Rg1 38. Rb3 Rf1 39. Bg5 f4 40. a5 Rg1 41. Bxf4 Nxf4 42. Rxb4 Rg5 43. Ra4 Nd5 44. c4 Rg2+ 45. Kb3 Ne7 46. a6 Rg8 47. a7 Ra8 48. Kb4 Nc8 49. Kc5 Rxa7 50. Rxa7+ Nxa7 51. d5 e5 52. d6 Ke6 53. d7 Kxd7 54. Kd5 Nc6 55. c5 Kc7 56. Ke4 Kc8 57. Ke3 Kb7 58. Ke4 Ka6 59. Kd5 Kb5 0-1

[Event "Prague Open 2024"]
[Site "Prague"]
[Date "2024.01.10"]
[Round "7.3"]
[White "Stanojevic, Ilija"]
[Black "Ivanov, Mike"]
[Result "1/2-1/2"]
[ECO "A61"]
[WhiteElo "2206"]
[BlackElo "2356"]
[Annotator "RC"]
[PlyCount "79"]
[EventDate "2024.01.02"]
[EventType "swiss"]
[EventCountry "CZE"]
[SourceTitle "playchess.com"]
[Source "ChessBase"]
[SourceQuality "1"]
[TimeControl "40/5400+30:1800+30"]

1. d4 Nf6 2. c4 c5 3. d5 e6 4. Nc3 exd5 5. cxd5 d6 6. Nf3 g6 7. Nd2 Nbd7 8. e4 Bg7 9. Be2 O-O 10. O-O Re8 11. a4 h6 12. Ra3 Ne5 13. f4 Ned7 14. Bf3 a6 15. Rb3 c4 16. Nxc4 Qc7 17. Ne3 Nc5 18. Rb4 Nfd7 19. Kh1 Rb8 20. Re1 Qa5 21. Rc4 b5 22. b4 Qd8 23. axb5 axb5 24. Nxb5 Nxe4 25. Rxe4 Rxe4 26. Bxe4 Rxb5 27. Bd2 Nf6 28. Bd3 Rb8 29. Qf3 Qb6 30. f5 g5 31. Nc4 Qd4 32. Nxd6 Bd7 33. Ne4 Nxd5 34. f6 Bf8 35. Qg3 Bf5 36. Qxb8 Qxd3 37. Nd6 Bd7 38. Ne4 Bf5 39. Nd6 Bd7 40. Ne4 1/2-1/2

[Event "Prague Open 2024"]
[Site "Prague"]
[Date "2024.01.10"]
[Round "7.4"]
[White "Berin, Artem"]
[Black "Pyrig, Roman"]
[Result "0-1"]
[ECO "A06"]
[WhiteElo "2327"]
[BlackElo "2154"]
[Annotator "RC"]
[PlyCount "142"]
[EventDate "2024.01.02"]
[EventType "swiss"]
[EventCountry "CZE"]
[SourceTitle "playchess.com"]
[Source "ChessBase"]
[SourceQuality "1"]
[TimeControl "40/5400+30:1800+30"]

1. Nf3 {[%emt 0:00:06]} d5 {[%emt 0:00:05]} 2. g3 {[%emt 0:00:04]} Nf6 {[%emt 0:00:16]} 3. Bg2 {[%emt 0:00:05]} Bf5 {[%emt 0:00:14]} 4. O-O {[%emt 0:00:26]} e6 {[%emt 0:00:38]} 5. d3 {[%emt 0:01:14]} h6 {[%emt 0:00:06]} 6. b3 {[%emt 0:04:54]} a5 {[%emt 0:03:28]} 7. c4 {[%emt 0:04:03]} c6 {[%emt 0:01:30]} 8. Bb2 {[%emt 0:01:21]} Be7 {[%emt 0:00:23]} 9. Nbd2 {[%emt 0:01:26]} O-O {[%emt 0:00:29]} 10. Re1 {[%emt 0:02:06]} Bh7 {[%emt 0:00:11]} 11. Qc2 {[%emt 0:06:35]} a4 {[%emt 0:04:33]} 12. Bc3 {[%emt 0:05:13]} Nbd7 {[%emt 0:05:56]} 13. b4 {[%emt 0:04:49]} dxc4 {[%emt 0:00:20]} 14. Nxc4 {[%emt 0:00:10]} Nd5 {[%emt 0:00:05]} 15. Rab1 {[%emt 0:01:54]} Nxc3 {[%emt 0:02:36]} 16. Qxc3 {[%emt 0:00:04]} Nb6 {[%emt 0:04:41]} 17. e4 Bf6 {[%emt 0:04:05]} 18. Qc2 {[%emt 0:03:20]} Nxc4 {[%emt 0:11:00]} 19. Qxc4 {[%emt 0:00:56]} a3 {[%emt 0:00:01]} 20. Rb3 {[%emt 0:08:59]} Bb2 {[%emt 0:01:46]} 21. Nd2 {[%emt 0:05:08]} b5 {[%emt 0:09:54]} 22. Qxc6 {[%emt 0:08:30]} Qb8 {[%emt 0:00:27]} 23. e5 {[%emt 0:08:29]} Ra7 {[%emt 0:00:03]} 24. Be4 {[%emt 0:00:12]} Bxe4 {[%emt 0:00:02]} 25. Qxe4 {[%emt 0:00:08]} Rd8 {[%emt 0:00:09]} 26. Nf3 {[%emt 0:04:22]} Rc7 {[%emt 0:10:03]} 27. g4 {[%emt 0:08:33]} Rdc8 {[%emt 0:00:11]} 28. g5 {[%emt 0:04:15]} Rc1 {[%emt 0:00:03]} 29. Rxc1 {[%emt 0:00:08]} Rxc1+ {[%emt 0:01:19]} 30. Kg2 {[%emt 0:00:04]} Qd8 {[%emt 0:08:59]} 31. gxh6 {[%emt 0:06:38]} gxh6 {[%emt 0:00:01]} 32. Qf4 {[%emt 0:02:57]} Qf8 {[%emt 0:03:13]} 33. d4 {[%emt 0:02:04]} Qg7+ {[%emt 0:00:02]} 34. Kh3 {[%emt 0:00:26]} h5 {[%emt 0:00:01]} 35. Ng5 {[%emt 0:01:36]} Rg1 {[%emt 0:02:25]} 36. Rg3 {[%emt 0:00:05]} Bc1 {[%emt 0:01:15]} 37. Rxg1 {[%emt 0:00:07]} Bxf4 {[%emt 0:00:02]} 38. Nf3 {[%emt 0:00:07]} Qxg1 {[%emt 0:00:02]} 39. Nxg1 {[%emt 0:00:06]} Bd2 {[%emt 0:00:01]} 40. Ne2 {[%emt 0:02:16]} Bxb4 {[%emt 0:01:45]} 41. Nc1 {[%emt 0:30:35]} Kg7 {[%emt 0:30:50]} 42. Kg3 {[%emt 0:00:21]} Kg6 {[%emt 0:00:10]} 43. Nb3 {[%emt 0:00:32]} Kf5 {[%emt 0:01:29]} 44. Kf3 {[%emt 0:00:05]} Bc3 {[%emt 0:00:11]} 45. h3 {[%emt 0:00:07]} Bb4 {[%emt 0:06:17]} 46. Na1 {[%emt 0:01:49]} Be7 {[%emt 0:02:55]} 47. Nc2 {[%emt 0:00:57]} b4 {[%emt 0:03:58]} 48. Na1 {[%emt 0:00:06]} f6 {[%emt 0:00:01]} 49. exf6 {[%emt 0:01:55]} Bxf6 {[%emt 0:01:21]} 50. Nb3 {[%emt 0:00:00]} Bg5 {[%emt 0:00:00]} 51. Na1 {[%emt 0:00:00]} Bd8 {[%emt 0:00:00]} 52. Nb3 {[%emt 0:00:00]} Bb6 {[%emt 0:00:00]} 53. Na1 {[%emt 0:00:00]} Bxd4 {[%emt 0:00:00]} 54. Nb3 {[%emt 0:00:00]} Ba7 {[%emt 0:00:00]} 55. Nc1 {[%emt 0:00:00]} Bb6 {[%emt 0:00:00]} 56. Nb3 {[%emt 0:00:00]} Ba7 {[%emt 0:00:00]} 57. Nc1 {[%emt 0:00:00]} e5 {[%emt 0:00:00]} 58. Nb3 {[%emt 0:00:00]} e4+ {[%emt 0:00:00]} 59. Ke2 {[%emt 0:00:00]} Kg5 {[%emt 0:00:00]} 60. Kf1 {[%emt 0:01:16]} Kh4 {[%emt 0:00:00]} 61. Kg2 {[%emt 0:00:05]} Bxf2 {[%emt 0:00:00]} 62. Kxf2 {[%emt 0:00:05]} Kxh3 {[%emt 0:00:00]} 63. Nd4 {[%emt 0:03:10]} e3+ {[%emt 0:00:00]} 64. Kf3 {[%emt 0:00:40]} h4 {[%emt 0:00:00]} 65. Nc2 {[%emt 0:01:25]} e2 {[%emt 0:00:00]} 66. Kxe2 {[%emt 0:02:19]} b3 {[%emt 0:00:00]} 67. axb3 {[%emt 0:00:04]} Kg2 {[%emt 0:00:00]} 68. Ne1+ {[%emt 0:00:40]} Kg1 {[%emt 0:00:00]} 69. Nf3+ {[%emt 0:00:57]} Kh1 {[%emt 0:00:00]} 70. Ne1 {[%emt 0:00:41]} a2 {[%emt 0:00:00]} 71. Nc2 {[%emt 0:00:04]} Kg1 {[%emt 0:00:00]} 0-1

[Event "Prague Open 2024"]
[Site "Prague"]
[Date "2024.01.10"]
[Round "7.5"]
[White "Keller, Peter"]
[Black "Koridze, Lile"]
[Result "1-0"]
[ECO "B90"]
[WhiteElo "2289"]
[BlackElo "2152"]
[Annotator "RC"]
[PlyCount "65"]
[EventDate "2024.01.02"]
[EventType "swiss"]
[EventCountry "CZE"]
[SourceTitle "playchess.com"]
[Source "ChessBase"]
[SourceQuality "1"]
[TimeControl "40/5400+30:1800+30"]

1. e4 {[%emt 0:12:10]} c5 {[%emt 0:00:07]} 2. Nf3 {[%emt 0:00:07]} d6 {[%emt 0:00:11]} 3. d4 {[%emt 0:00:04]} cxd4 {[%emt 0:00:03]} 4. Nxd4 {[%emt 0:00:05]} Nf6 {[%emt 0:00:04]} 5. Nc3 {[%emt 0:00:05]} a6 {[%emt 0:00:03]} 6. f3 {[%emt 0:00:04]} e5 {[%emt 0:00:05]} 7. Nb3 {[%emt 0:00:03]} Be6 {[%emt 0:00:05]} 8. Be3 {[%emt 0:00:04]} Nbd7 {[%emt 0:01:09]} 9. Qd2 {[%emt 0:00:19]} h5 {[%emt 0:00:14]} 10. Nd5 {[%emt 0:00:30]} Bxd5 {[%emt 0:00:16]} 11. exd5 {[%emt 0:00:06]} g6 {[%emt 0:00:14]} 12. O-O-O {[%emt 0:00:26]} Qc7 {[%emt 0:07:38]} 13. Kb1 {[%emt 0:00:26]} a5 {[%emt 0:03:34]} 14. a4 {[%emt 0:14:03]} Bg7 {[%emt 0:05:37]} 15. h4 {[%emt 0:06:23]} Nb6 {[%emt 0:02:43]} 16. Bb5+ {[%emt 0:01:12]} Kf8 {[%emt 0:00:06]} 17. c4 {[%emt 0:18:29]} Kg8 {[%emt 0:08:30]} 18. c5 {[%emt 0:03:52]} Nc8 {[%emt 0:06:27]} 19. Rc1 {[%emt 0:08:42]} Ne7 {[%emt 0:02:58]} 20. cxd6 {[%emt 0:07:48]} Qxd6 {[%emt 0:00:06]} 21. Bc5 {[%emt 0:01:00]} Qxd5 {[%emt 0:00:35]} 22. Bxe7 {[%emt 0:00:09]} Qxb3 {[%emt 0:00:05]} 23. Rc7 {[%emt 0:12:57]} Qd5 {[%emt 0:33:16]} 24. Qc2 {[%emt 0:03:39]} Qd4 {[%emt 0:01:41]} 25. Bxf6 {[%emt 0:01:32]} Bxf6 {[%emt 0:00:05]} 26. Bc4 {[%emt 0:00:39]} Rh7 {[%emt 0:07:56]} 27. Qxg6+ {[%emt 0:04:59]} Bg7 {[%emt 0:00:09]} 28. Bxf7+ {[%emt 0:00:43]} Kh8 {[%emt 0:00:05]} 29. Rhc1 {[%emt 0:00:18]} Rd8 {[%emt 0:00:58]} 30. Rc8 {[%emt 0:01:13]} e4 {[%emt 0:04:29]} 31. Rxd8+ {[%emt 0:00:25]} Qxd8 {[%emt 0:00:05]} 32. Qe6 {[%emt 0:01:22]} Rh6 {[%emt 0:00:58]} 33. Rc8 {[%emt 0:00:12]} 1-0